[Event "Lietuvos BM10-BM18"]
[Site "Vilnius"]
[Date "2021.06.05"]
[Round "6.1"]
[White "Likatavicius, Rapolas"]
[Black "Bagvilas, Lukas"]
[Result "0-1"]
[WhiteElo "1896"]
[BlackElo "2053"]
[PlyCount "130"]
[EventDate "2021.??.??"]
[TimeControl "90+30"]
[WhiteClock "0:04:03"]
[BlackClock "0:53:04"]

1. d4 {[%emt 0:00:00]} e6 {[%emt 0:00:05]} 2. c4 {[%emt 0:00:14]} d5 {[%emt 0:
00:07]} 3. Nf3 {[%emt 0:01:25]} c6 {[%emt 0:00:08]} 4. cxd5 {[%emt 0:03:33]}
exd5 {[%emt 0:00:10]} 5. Qc2 {[%emt 0:00:57]} Nf6 {[%emt 0:00:15]} 6. Bg5 {
[%emt 0:00:37]} Be7 {[%emt 0:00:10]} 7. Nc3 {[%emt 0:00:16]} O-O {[%emt 0:00:
15]} 8. e3 {[%emt 0:00:11]} h6 {[%emt 0:00:11]} 9. Bh4 {[%emt 0:05:02]} Re8 {
[%emt 0:00:51]} 10. Bd3 {[%emt 0:01:37]} Nbd7 {[%emt 0:00:18]} 11. O-O {[%emt
0:00:47]} Ne4 {[%emt 0:03:24]} 12. Bg3 {[%emt 0:05:43]} Nxg3 {[%emt 0:01:11]}
13. hxg3 {[%emt 0:00:12]} Nf6 {[%emt 0:00:22]} 14. Bf5 {[%emt 0:03:00]} Bd6 {
[%emt 0:02:23]} 15. Nd2 {[%emt 0:14:03]} h5 {[%emt 0:06:28]} 16. Rae1 {[%emt 0:
14:10]} Ng4 {[%emt 0:02:29]} 17. Bxc8 {[%emt 0:02:28]} Rxc8 {[%emt 0:00:09]}
18. e4 {[%emt 0:02:02]} dxe4 {[%emt 0:00:21]} 19. Rxe4 {[%emt 0:02:26]} Rxe4 {
[%emt 0:01:50]} 20. Qxe4 {[%emt 0:00:33]} Qd7 {[%emt 0:01:26]} 21. Nf3 {[%emt
0:05:07]} Re8 {[%emt 0:02:14]} 22. Qd3 {[%emt 0:00:33]} Bc7 {[%emt 0:02:51]}
23. Re1 {[%emt 0:12:03]} Rd8 {[%emt 0:00:21]} 24. Re2 {[%emt 0:10:29]} Bb6 {
[%emt 0:02:23]} 25. Na4 {[%emt 0:00:01]} Bxd4 {[%emt 0:02:14]} 26. Nxd4 {[%emt
0:00:04]} Qxd4 {[%emt 0:00:05]} 27. Qxd4 {[%emt 0:00:36]} Rxd4 {[%emt 0:00:06]}
28. Nc3 {[%emt 0:00:02]} f6 {[%emt 0:01:09]} 29. f3 {[%emt 0:00:13]} Ne5 {
[%emt 0:00:05]} 30. Ne4 {[%emt 0:01:09]} Rd1+ {[%emt 0:00:46]} 31. Kf2 {[%emt
0:01:38]} Kf7 {[%emt 0:00:18]} 32. b3 {[%emt 0:00:40]} b6 {[%emt 0:01:12]} 33.
Ke3 {[%emt 0:01:33]} c5 {[%emt 0:08:15]} 34. Rd2 {[%emt 0:03:42]} Rxd2 {[%emt
0:00:18]} 35. Kxd2 {[%emt 0:00:21]} Ke6 {[%emt 0:00:05]} 36. Nc3 {[%emt 0:00:
36]} Nc6 {[%emt 0:01:59]} 37. Nb5 {[%emt 0:01:13]} Kd7 {[%emt 0:02:50]} 38. Nc3
{[%emt 0:01:06]} Ne7 {[%emt 0:01:35]} 39. Kd3 {[%emt 0:02:12]} a6 {[%emt 0:01:
03]} 40. Ke4 {[%emt 0:00:44]} g6 {[%emt 0:01:30]} 41. Ne2 {[%emt 0:02:32]} g5 {
[%emt 0:01:31]} 42. g4 {[%emt 0:00:41]} hxg4 {[%emt 0:00:17]} 43. fxg4 {[%emt
0:00:03]} Ke6 {[%emt 0:00:29]} 44. Nc3 {[%emt 0:00:26]} b5 {[%emt 0:00:17]} 45.
a4 {[%emt 0:00:49]} b4 {[%emt 0:00:21]} 46. Nd1 {[%emt 0:00:54]} Nc6 {[%emt 0:
00:34]} 47. Ne3 {[%emt 0:00:48]} Na5 {[%emt 0:05:45]} 48. Nd5 {[%emt 0:02:31]}
Nxb3 {[%emt 0:00:19]} 49. Nc7+ {[%emt 0:00:01]} Kd6 {[%emt 0:00:35]} 50. Nxa6 {
[%emt 0:00:02]} Kc6 {[%emt 0:00:09]} 51. Kd3 {[%emt 0:01:32]} Kb7 {[%emt 0:00:
06]} 52. Nxb4 {[%emt 0:00:05]} cxb4 {[%emt 0:00:07]} 53. Kc4 {[%emt 0:00:01]}
Nc5 {[%emt 0:01:34]} 54. Kxb4 {[%emt 0:00:03]} Nxa4 {[%emt 0:03:26]} 55. Kxa4 {
[%emt 0:00:12]} Kc6 {[%emt 0:00:04]} 56. Kb4 {[%emt 0:00:16]} Kd5 {[%emt 0:00:
04]} 57. Kc3 {[%emt 0:00:03]} Ke4 {[%emt 0:00:07]} 58. Kd2 {[%emt 0:00:05]} Kf4
{[%emt 0:00:06]} 59. Ke2 {[%emt 0:00:06]} Kxg4 {[%emt 0:00:08]} 60. Kf2 {[%emt
0:00:04]} Kf4 {[%emt 0:00:08]} 61. Kf1 {[%emt 0:02:51]} Kg3 {[%emt 0:00:05]}
62. Kg1 {[%emt 0:00:04]} f5 {[%emt 0:00:05]} 63. Kf1 {[%emt 0:00:10]} Kh2 {
[%emt 0:00:16]} 64. Kf2 {[%emt 0:00:11]} g4 {[%emt 0:00:12]} 65. g3 {[%emt 0:
00:23]} Kh3 {[%emt 0:00:05]} 0-1

[Event "Lietuvos BM10-BM18"]
[Site "Vilnius"]
[Date "2021.06.05"]
[Round "6.2"]
[White "Jablokov, Dmitrij"]
[Black "Bagdanskis, Dangis"]
[Result "1/2-1/2"]
[WhiteElo "1964"]
[BlackElo "1945"]
[PlyCount "31"]
[EventDate "2021.??.??"]
[TimeControl "90+30"]
[WhiteClock "1:09:24"]
[BlackClock "1:00:30"]

1. Nf3 {[%emt 0:00:10]} Nf6 {[%emt 0:00:06]} 2. g3 {[%emt 0:00:12]} d5 {[%emt
0:00:05]} 3. Bg2 {[%emt 0:00:04]} e6 {[%emt 0:00:06]} 4. O-O {[%emt 0:00:05]}
Be7 {[%emt 0:01:03]} 5. c4 {[%emt 0:00:11]} O-O {[%emt 0:00:20]} 6. b3 {[%emt
0:00:36]} c5 {[%emt 0:01:10]} 7. Bb2 {[%emt 0:01:08]} Nc6 {[%emt 0:01:44]} 8.
cxd5 {[%emt 0:01:27]} Nxd5 {[%emt 0:02:46]} 9. Nc3 {[%emt 0:09:42]} Bf6 {[%emt
0:13:00]} 10. Qc1 {[%emt 0:00:35]} b6 {[%emt 0:05:49]} 11. Nxd5 {[%emt 0:01:37]
} exd5 {[%emt 0:01:13]} 12. d4 {[%emt 0:06:06]} Ba6 {[%emt 0:04:13]} 13. Re1 {
[%emt 0:06:00]} Nxd4 {[%emt 0:03:00]} 14. Nxd4 {[%emt 0:00:06]} cxd4 {[%emt 0:
00:03]} 15. Qd2 {[%emt 0:00:30]} Re8 {[%emt 0:02:52]} 16. Bxd4 {[%emt 0:00:35]}
1/2-1/2

[Event "Lietuvos BM10-BM18"]
[Site "Vilnius"]
[Date "2021.06.05"]
[Round "6.3"]
[White "Butvilas, Aistis"]
[Black "Stremavicius, Pijus"]
[Result "1-0"]
[WhiteElo "2115"]
[BlackElo "2228"]
[PlyCount "67"]
[EventDate "2021.??.??"]
[TimeControl "90+30"]
[WhiteClock "0:41:57"]
[BlackClock "0:37:59"]

1. d4 {[%emt 0:00:02]} e6 {[%emt 0:00:07]} 2. c4 {[%emt 0:00:09]} Bb4+ {[%emt
0:00:05]} 3. Bd2 {[%emt 0:00:24]} a5 {[%emt 0:00:05]} 4. Nf3 {[%emt 0:00:23]}
d6 {[%emt 0:00:26]} 5. Nc3 {[%emt 0:00:37]} Nf6 {[%emt 0:00:08]} 6. Qc2 {[%emt
0:00:35]} Qe7 {[%emt 0:03:28]} 7. a3 {[%emt 0:02:03]} Bxc3 {[%emt 0:00:06]} 8.
Bxc3 {[%emt 0:00:02]} Nc6 {[%emt 0:00:56]} 9. e3 {[%emt 0:01:50]} e5 {[%emt 0:
00:44]} 10. d5 {[%emt 0:01:28]} Nb8 {[%emt 0:00:21]} 11. b3 {[%emt 0:01:23]}
O-O {[%emt 0:00:19]} 12. Be2 {[%emt 0:00:07]} c6 {[%emt 0:00:09]} 13. dxc6 {
[%emt 0:00:10]} Nxc6 {[%emt 0:02:53]} 14. O-O {[%emt 0:00:29]} d5 {[%emt 0:07:
46]} 15. Rfd1 {[%emt 0:03:13]} dxc4 {[%emt 0:01:43]} 16. bxc4 {[%emt 0:03:31]}
Nd7 {[%emt 0:05:51]} 17. Qb2 {[%emt 0:03:47]} f6 {[%emt 0:00:55]} 18. h3 {
[%emt 0:12:55]} Nc5 {[%emt 0:00:46]} 19. Be1 {[%emt 0:00:32]} Be6 {[%emt 0:00:
39]} 20. Qb5 {[%emt 0:00:58]} Rfc8 {[%emt 0:01:52]} 21. Rac1 {[%emt 0:03:14]}
Bd7 {[%emt 0:08:43]} 22. Qb2 {[%emt 0:08:56]} Nd8 {[%emt 0:01:20]} 23. Nd2 {
[%emt 0:02:38]} Ba4 {[%emt 0:00:38]} 24. Nb1 {[%emt 0:00:41]} Bxd1 {[%emt 0:00:
35]} 25. Rxd1 {[%emt 0:00:09]} Qe8 {[%emt 0:03:43]} 26. Nc3 {[%emt 0:02:40]}
Na4 {[%emt 0:00:51]} 27. Nxa4 {[%emt 0:00:14]} Qxa4 {[%emt 0:00:00]} 28. Rd5 {
[%emt 0:00:33]} Qc6 {[%emt 0:05:18]} 29. Bxa5 {[%emt 0:01:21]} Ne6 {[%emt 0:01:
30]} 30. Qd2 {[%emt 0:03:19]} b6 {[%emt 0:04:42]} 31. Rd6 {[%emt 0:00:45]} Qe8
{[%emt 0:04:59]} 32. Bxb6 {[%emt 0:01:29]} Nf8 {[%emt 0:00:22]} 33. c5 {[%emt
0:03:03]} Ng6 {[%emt 0:06:59]} 34. c6 {[%emt 0:01:54]} 1-0

[Event "Lietuvos BM10-BM18"]
[Site "Vilnius"]
[Date "2021.06.05"]
[Round "6.4"]
[White "Ravlusevic, Evelina"]
[Black "Karaliute, Vestina"]
[Result "1-0"]
[WhiteElo "1749"]
[BlackElo "1307"]
[PlyCount "59"]
[EventDate "2021.??.??"]
[TimeControl "90+30"]
[WhiteClock "0:40:08"]
[BlackClock "0:46:55"]

1. d4 {[%emt 0:14:39]} d5 {[%emt 0:00:06]} 2. c4 {[%emt 0:00:06]} e5 {[%emt 0:
00:46]} 3. dxe5 {[%emt 0:00:21]} d4 {[%emt 0:04:25]} 4. Nf3 {[%emt 0:02:55]}
Nc6 {[%emt 0:02:15]} 5. g3 {[%emt 0:00:13]} Bb4+ {[%emt 0:00:54]} 6. Bd2 {
[%emt 0:00:18]} Qe7 {[%emt 0:01:52]} 7. Bg2 {[%emt 0:02:48]} Be6 {[%emt 0:04:
41]} 8. a3 {[%emt 0:00:36]} Bxd2+ {[%emt 0:01:43]} 9. Nbxd2 {[%emt 0:00:12]}
Qd7 {[%emt 0:01:06]} 10. O-O {[%emt 0:00:35]} Bh3 {[%emt 0:01:52]} 11. Ne4 {
[%emt 0:03:54]} Bxg2 {[%emt 0:01:56]} 12. Kxg2 {[%emt 0:00:11]} Nge7 {[%emt 0:
00:37]} 13. Nc5 {[%emt 0:00:50]} Qg4 {[%emt 0:02:01]} 14. h3 {[%emt 0:02:46]}
Qf5 {[%emt 0:02:00]} 15. b4 {[%emt 0:02:50]} b6 {[%emt 0:01:43]} 16. Na6 {
[%emt 0:01:55]} Qc8 {[%emt 0:03:56]} 17. b5 {[%emt 0:01:00]} Na5 {[%emt 0:00:
39]} 18. c5 {[%emt 0:06:28]} c6 {[%emt 0:02:50]} 19. Nxd4 {[%emt 0:02:49]} cxb5
{[%emt 0:04:02]} 20. Nxb5 {[%emt 0:00:50]} O-O {[%emt 0:01:01]} 21. Nb4 {[%emt
0:01:29]} bxc5 {[%emt 0:01:11]} 22. Nd6 {[%emt 0:01:12]} Qe6 {[%emt 0:02:24]}
23. Nd3 {[%emt 0:01:48]} Rfd8 {[%emt 0:02:13]} 24. f4 {[%emt 0:03:56]} Rxd6 {
[%emt 0:04:12]} 25. exd6 {[%emt 0:04:01]} Nf5 {[%emt 0:01:40]} 26. Rf3 {[%emt
0:04:44]} Ne3+ {[%emt 0:02:11]} 27. Rxe3 {[%emt 0:00:12]} Qxe3 {[%emt 0:00:07]}
28. Ne5 {[%emt 0:00:40]} f6 {[%emt 0:03:19]} 29. Qd5+ {[%emt 0:00:36]} Kh8 {
[%emt 0:00:32]} 30. Qxa8# {[%emt 0:00:18]} 1-0

[Event "Lietuvos BM10-BM18"]
[Site "Vilnius"]
[Date "2021.06.05"]
[Round "6.5"]
[White "Maciulaityte, Barbora"]
[Black "Meskauskaite, Gabija"]
[Result "1-0"]
[WhiteElo "1640"]
[BlackElo "1205"]
[PlyCount "67"]
[EventDate "2021.??.??"]
[TimeControl "90+30"]
[WhiteClock "0:50:47"]
[BlackClock "0:25:46"]

1. e4 {[%emt 0:00:00]} e5 {[%emt 0:00:07]} 2. Nf3 {[%emt 0:00:07]} Nc6 {[%emt
0:00:07]} 3. Bb5 {[%emt 0:00:07]} Bc5 {[%emt 0:00:07]} 4. O-O {[%emt 0:00:26]}
Nf6 {[%emt 0:00:18]} 5. d3 {[%emt 0:01:18]} O-O {[%emt 0:00:23]} 6. c3 {[%emt
0:01:36]} a5 {[%emt 0:01:59]} 7. Bxc6 {[%emt 0:07:57]} bxc6 {[%emt 0:02:37]} 8.
Nxe5 {[%emt 0:03:33]} Re8 {[%emt 0:05:02]} 9. Nf3 {[%emt 0:01:22]} d5 {[%emt 0:
07:20]} 10. exd5 {[%emt 0:03:21]} cxd5 {[%emt 0:00:15]} 11. d4 {[%emt 0:02:34]}
Bd6 {[%emt 0:00:15]} 12. Bg5 {[%emt 0:00:19]} Bg4 {[%emt 0:00:36]} 13. Nbd2 {
[%emt 0:01:05]} c6 {[%emt 0:00:22]} 14. Re1 {[%emt 0:01:57]} Be7 {[%emt 0:05:
21]} 15. Qc2 {[%emt 0:08:32]} Qc7 {[%emt 0:24:31]} 16. Ne5 {[%emt 0:06:10]}
Rab8 {[%emt 0:01:07]} 17. Bxf6 {[%emt 0:02:04]} Bh5 {[%emt 0:05:05]} 18. Bxe7 {
[%emt 0:00:47]} Rxe7 {[%emt 0:01:04]} 19. Nb3 {[%emt 0:01:37]} Rbe8 {[%emt 0:
00:20]} 20. Qd2 {[%emt 0:01:07]} Qd6 {[%emt 0:01:32]} 21. Nc5 {[%emt 0:01:55]}
Qf6 {[%emt 0:03:34]} 22. Ned3 {[%emt 0:01:48]} Re2 {[%emt 0:00:49]} 23. Rxe2 {
[%emt 0:01:23]} Rxe2 {[%emt 0:00:08]} 24. Re1 {[%emt 0:00:40]} Rxe1+ {[%emt 0:
01:07]} 25. Qxe1 {[%emt 0:00:09]} h6 {[%emt 0:00:17]} 26. b4 {[%emt 0:02:14]}
axb4 {[%emt 0:01:29]} 27. Nxb4 {[%emt 0:00:12]} Qg6 {[%emt 0:04:04]} 28. Kh1 {
[%emt 0:00:21]} f5 {[%emt 0:00:42]} 29. Qe6+ {[%emt 0:00:19]} Qxe6 {[%emt 0:01:
11]} 30. Nxe6 {[%emt 0:00:09]} Be8 {[%emt 0:00:06]} 31. a4 {[%emt 0:00:30]} Bd7
{[%emt 0:07:26]} 32. Nc5 {[%emt 0:00:28]} Bc8 {[%emt 0:00:45]} 33. Nxc6 {[%emt
0:00:08]} Kf7 {[%emt 0:00:48]} 34. Na7 {[%emt 0:00:46]} 1-0

[Event "Lietuvos BM10-BM18"]
[Site "Vilnius"]
[Date "2021.06.05"]
[Round "6.6"]
[White "Greicius, Pijus"]
[Black "Posaskov, Nikita"]
[Result "1/2-1/2"]
[WhiteElo "2004"]
[BlackElo "1798"]
[PlyCount "51"]
[EventDate "2021.??.??"]
[TimeControl "90+30"]
[WhiteClock "0:10:04"]
[BlackClock "0:28:38"]

1. c4 {[%emt 0:00:02]} Nf6 {[%emt 0:00:08]} 2. Nc3 {[%emt 0:00:06]} e6 {[%emt
0:00:06]} 3. d4 {[%emt 0:00:31]} d5 {[%emt 0:00:05]} 4. cxd5 {[%emt 0:00:11]}
exd5 {[%emt 0:00:04]} 5. Bg5 {[%emt 0:00:16]} Be7 {[%emt 0:00:07]} 6. e3 {
[%emt 0:00:11]} O-O {[%emt 0:00:07]} 7. Bd3 {[%emt 0:00:19]} c6 {[%emt 0:00:06]
} 8. Qc2 {[%emt 0:00:43]} h6 {[%emt 0:00:06]} 9. Bh4 {[%emt 0:00:28]} Re8 {
[%emt 0:00:07]} 10. Nge2 {[%emt 0:05:05]} Nbd7 {[%emt 0:00:23]} 11. O-O {[%emt
0:00:17]} Ne4 {[%emt 0:04:25]} 12. Bxe7 {[%emt 0:02:10]} Qxe7 {[%emt 0:00:23]}
13. Rae1 {[%emt 0:02:35]} Nxc3 {[%emt 0:32:19]} 14. bxc3 {[%emt 0:05:37]} Nf6 {
[%emt 0:10:29]} 15. c4 {[%emt 0:10:50]} dxc4 {[%emt 0:00:24]} 16. Bxc4 {[%emt
0:00:24]} Be6 {[%emt 0:00:07]} 17. Bd3 {[%emt 0:10:55]} Nd5 {[%emt 0:10:58]}
18. Qb2 {[%emt 0:08:22]} Qb4 {[%emt 0:00:49]} 19. Rb1 {[%emt 0:00:37]} Qxb2 {
[%emt 0:00:07]} 20. Rxb2 {[%emt 0:00:04]} b5 {[%emt 0:00:45]} 21. Rc1 {[%emt 0:
05:15]} Rac8 {[%emt 0:01:00]} 22. Rc5 {[%emt 0:15:42]} Nb6 {[%emt 0:01:22]} 23.
Rc1 {[%emt 0:17:38]} Bc4 {[%emt 0:03:05]} 24. Bxc4 {[%emt 0:02:10]} Nxc4 {
[%emt 0:00:06]} 25. Rbc2 {[%emt 0:00:05]} Kf8 {[%emt 0:06:33]} 26. Kf1 {[%emt
0:03:02]} 1/2-1/2

[Event "Lietuvos BM10-BM18"]
[Site "Vilnius"]
[Date "2021.06.05"]
[Round "6.7"]
[White "Leclere, Daniel"]
[Black "Povilaitis, Tomas"]
[Result "1/2-1/2"]
[WhiteElo "1800"]
[BlackElo "1903"]
[PlyCount "110"]
[EventDate "2021.??.??"]
[TimeControl "90+30"]
[WhiteClock "1:01:18"]
[BlackClock "0:02:14"]

1. d4 {[%emt 0:00:03]} Nf6 {[%emt 0:00:12]} 2. c4 {[%emt 0:00:09]} e6 {[%emt 0:
00:09]} 3. g3 {[%emt 0:00:05]} d5 {[%emt 0:00:10]} 4. Nf3 {[%emt 0:00:04]} Be7
{[%emt 0:00:17]} 5. Bg2 {[%emt 0:00:14]} O-O {[%emt 0:00:15]} 6. O-O {[%emt 0:
00:15]} dxc4 {[%emt 0:01:17]} 7. Ne5 {[%emt 0:00:04]} Nc6 {[%emt 0:00:22]} 8.
Bxc6 {[%emt 0:00:05]} bxc6 {[%emt 0:00:08]} 9. Nxc6 {[%emt 0:00:04]} Qe8 {
[%emt 0:00:09]} 10. Nxe7+ {[%emt 0:00:04]} Qxe7 {[%emt 0:00:08]} 11. Qa4 {
[%emt 0:00:08]} e5 {[%emt 0:00:11]} 12. dxe5 {[%emt 0:00:08]} Qxe5 {[%emt 0:00:
09]} 13. Qxc4 {[%emt 0:00:05]} Be6 {[%emt 0:00:10]} 14. Qc2 {[%emt 0:00:07]}
Nd5 {[%emt 0:00:13]} 15. e4 {[%emt 0:03:54]} Nb4 {[%emt 0:13:55]} 16. Qe2 {
[%emt 0:00:15]} Qc5 {[%emt 0:09:32]} 17. Na3 {[%emt 0:01:23]} Rfd8 {[%emt 0:04:
44]} 18. Be3 {[%emt 0:01:42]} Qc6 {[%emt 0:01:48]} 19. f3 {[%emt 0:01:21]} Nxa2
{[%emt 0:08:30]} 20. Rfd1 {[%emt 0:02:01]} Bb3 {[%emt 0:07:22]} 21. Rd3 {[%emt
0:01:45]} Rxd3 {[%emt 0:09:42]} 22. Qxd3 {[%emt 0:01:02]} Qe6 {[%emt 0:00:19]}
23. Bxa7 {[%emt 0:04:15]} h5 {[%emt 0:00:59]} 24. Be3 {[%emt 0:01:04]} c6 {
[%emt 0:03:56]} 25. Nb1 {[%emt 0:05:08]} Kh7 {[%emt 0:05:04]} 26. Nd2 {[%emt 0:
01:55]} Nb4 {[%emt 0:03:23]} 27. Qf1 {[%emt 0:01:04]} Rd8 {[%emt 0:02:40]} 28.
Ra3 {[%emt 0:03:37]} Nc2 {[%emt 0:04:50]} 29. Rxb3 {[%emt 0:00:35]} Nxe3 {
[%emt 0:00:41]} 30. Rxe3 {[%emt 0:00:42]} Rxd2 {[%emt 0:00:06]} 31. Re2 {[%emt
0:00:24]} Rd3 {[%emt 0:01:37]} 32. Kg2 {[%emt 0:05:20]} Qb3 {[%emt 0:02:53]}
33. e5 {[%emt 0:01:05]} Rd1 {[%emt 0:00:28]} 34. Qf2 {[%emt 0:00:26]} Qd3 {
[%emt 0:02:34]} 35. Rc2 {[%emt 0:01:01]} g6 {[%emt 0:05:01]} 36. Re2 {[%emt 0:
06:01]} c5 {[%emt 0:02:05]} 37. Qe3 {[%emt 0:01:04]} Qxe3 {[%emt 0:02:15]} 38.
Rxe3 {[%emt 0:00:00]} Rd2+ {[%emt 0:00:06]} 39. Kg1 {[%emt 0:00:33]} Rxb2 {
[%emt 0:00:07]} 40. Rc3 {[%emt 0:00:09]} Rb5 {[%emt 0:00:25]} 41. f4 {[%emt 0:
00:47]} Kg7 {[%emt 0:00:18]} 42. Kf2 {[%emt 0:00:26]} Kf8 {[%emt 0:02:20]} 43.
Ke3 {[%emt 0:00:08]} Ke7 {[%emt 0:00:32]} 44. Ke4 {[%emt 0:01:20]} Ke6 {[%emt
0:00:31]} 45. Rc4 {[%emt 0:00:18]} f6 {[%emt 0:02:45]} 46. exf6 {[%emt 0:00:20]
} Kxf6 {[%emt 0:00:01]} 47. h3 {[%emt 0:01:36]} Rb4 {[%emt 0:06:52]} 48. Rxb4 {
[%emt 0:00:14]} cxb4 {[%emt 0:00:00]} 49. g4 {[%emt 0:00:21]} b3 {[%emt 0:01:
44]} 50. Kd3 {[%emt 0:00:05]} Ke6 {[%emt 0:00:03]} 51. Kc3 {[%emt 0:00:19]}
hxg4 {[%emt 0:01:31]} 52. hxg4 {[%emt 0:00:05]} Kd5 {[%emt 0:00:04]} 53. Kxb3 {
[%emt 0:00:14]} Ke4 {[%emt 0:00:08]} 54. f5 {[%emt 0:00:12]} gxf5 {[%emt 0:00:
50]} 55. gxf5 {[%emt 0:00:11]} Kxf5 {[%emt 0:00:02]} 1/2-1/2

[Event "Lietuvos BM10-BM18"]
[Site "Vilnius"]
[Date "2021.06.05"]
[Round "6.8"]
[White "Norkunas, Azuolas"]
[Black "Norkeliunas, Matas"]
[Result "1/2-1/2"]
[WhiteElo "1507"]
[BlackElo "1533"]
[PlyCount "130"]
[EventDate "2021.??.??"]
[TimeControl "90+30"]
[WhiteClock "0:02:20"]
[BlackClock "0:08:50"]

1. e4 {[%emt 0:00:06]} c5 {[%emt 0:00:27]} 2. Nf3 {[%emt 0:00:36]} d6 {[%emt 0:
00:35]} 3. d4 {[%emt 0:01:17]} cxd4 {[%emt 0:00:57]} 4. Nxd4 {[%emt 0:00:41]}
Nf6 {[%emt 0:01:28]} 5. Nc3 {[%emt 0:01:08]} e5 {[%emt 0:00:44]} 6. Bb5+ {
[%emt 0:04:10]} Bd7 {[%emt 0:03:34]} 7. Bxd7+ {[%emt 0:07:25]} Qxd7 {[%emt 0:
04:57]} 8. Nb3 {[%emt 0:02:50]} Nc6 {[%emt 0:04:12]} 9. f3 {[%emt 0:01:40]} Be7
{[%emt 0:04:56]} 10. Be3 {[%emt 0:00:51]} O-O {[%emt 0:03:04]} 11. O-O {[%emt
0:05:52]} Rad8 {[%emt 0:02:51]} 12. Nd5 {[%emt 0:11:38]} h6 {[%emt 0:08:59]}
13. Qd2 {[%emt 0:06:44]} Nh7 {[%emt 0:04:38]} 14. Nxe7+ {[%emt 0:06:57]} Qxe7 {
[%emt 0:02:01]} 15. g4 {[%emt 0:02:20]} b6 {[%emt 0:07:15]} 16. c4 {[%emt 0:13:
17]} Qe6 {[%emt 0:06:59]} 17. Qe2 {[%emt 0:05:18]} Ne7 {[%emt 0:03:23]} 18. Nd2
{[%emt 0:00:21]} h5 {[%emt 0:05:06]} 19. h3 {[%emt 0:02:32]} Ng6 {[%emt 0:05:
33]} 20. Rfd1 {[%emt 0:00:50]} Qf6 {[%emt 0:01:56]} 21. Nf1 {[%emt 0:02:39]}
Nf4 {[%emt 0:01:34]} 22. Bxf4 {[%emt 0:00:10]} Qxf4 {[%emt 0:00:19]} 23. Qe3 {
[%emt 0:00:16]} Ng5 {[%emt 0:02:27]} 24. Kg2 {[%emt 0:00:25]} Qf6 {[%emt 0:01:
01]} 25. Ng3 {[%emt 0:01:37]} hxg4 {[%emt 0:02:48]} 26. hxg4 {[%emt 0:00:08]}
Ne6 {[%emt 0:00:14]} 27. Ne2 {[%emt 0:09:17]} Rc8 {[%emt 0:01:37]} 28. b3 {
[%emt 0:00:22]} b5 {[%emt 0:00:13]} 29. cxb5 {[%emt 0:03:11]} Rc2 {[%emt 0:00:
32]} 30. Rd2 {[%emt 0:00:15]} Nf4+ {[%emt 0:00:55]} 31. Kg1 {[%emt 0:06:02]}
Rfc8 {[%emt 0:02:29]} 32. Rad1 {[%emt 0:00:07]} Qh4 {[%emt 0:02:21]} 33. Nxf4 {
[%emt 0:01:16]} R8c3 {[%emt 0:01:32]} 34. Ng2 {[%emt 0:02:06]} Qh3 {[%emt 0:03:
00]} 35. Qe2 {[%emt 0:01:53]} Rxd2 {[%emt 0:01:52]} 36. Rxd2 {[%emt 0:00:13]}
Rxf3 {[%emt 0:01:20]} 37. Rxd6 {[%emt 0:00:32]} Rc3 {[%emt 0:01:30]} 38. Qe1 {
[%emt 0:01:23]} Rg3 {[%emt 0:00:31]} 39. Qe2 {[%emt 0:00:17]} Rxg4 {[%emt 0:00:
42]} 40. Rd3 {[%emt 0:00:24]} Rxg2+ {[%emt 0:00:10]} 41. Qxg2 {[%emt 0:00:26]}
Qxd3 {[%emt 0:00:01]} 42. Qf2 {[%emt 0:01:05]} Qb1+ {[%emt 0:00:44]} 43. Kh2 {
[%emt 0:00:06]} Qxe4 {[%emt 0:00:21]} 44. Qxa7 {[%emt 0:00:06]} Qe2+ {[%emt 0:
00:14]} 45. Kg3 {[%emt 0:00:30]} Qxb5 {[%emt 0:00:30]} 46. Qa8+ {[%emt 0:00:24]
} Kh7 {[%emt 0:00:07]} 47. Qe4+ {[%emt 0:01:32]} g6 {[%emt 0:00:08]} 48. Qf3 {
[%emt 0:00:38]} Kg7 {[%emt 0:00:56]} 49. Qc3 {[%emt 0:00:10]} f5 {[%emt 0:00:
51]} 50. a4 {[%emt 0:00:28]} Qd5 {[%emt 0:00:45]} 51. a5 {[%emt 0:00:33]} f4+ {
[%emt 0:01:02]} 52. Kf2 {[%emt 0:00:10]} Qb5 {[%emt 0:00:46]} 53. b4 {[%emt 0:
01:04]} Kf6 {[%emt 0:00:34]} 54. Qc5 {[%emt 0:00:32]} Qd3 {[%emt 0:00:31]} 55.
Qf8+ {[%emt 0:00:24]} Kg5 {[%emt 0:00:31]} 56. Qe7+ {[%emt 0:00:19]} Kg4 {
[%emt 0:00:25]} 57. Qxe5 {[%emt 0:00:37]} Qg3+ {[%emt 0:00:53]} 58. Kf1 {[%emt
0:00:22]} Qh3+ {[%emt 0:00:16]} 59. Kf2 {[%emt 0:00:08]} Qh2+ {[%emt 0:00:28]}
60. Kf1 {[%emt 0:00:04]} Qh1+ {[%emt 0:00:40]} 61. Kf2 {[%emt 0:00:19]} Qh4+ {
[%emt 0:00:35]} 62. Kf1 {[%emt 0:00:19]} Qh3+ {[%emt 0:00:20]} 63. Kf2 {[%emt
0:00:26]} Qf3+ {[%emt 0:01:08]} 64. Kg1 {[%emt 0:00:37]} Qd1+ {[%emt 0:00:31]}
65. Kf2 {[%emt 0:00:13]} Qf3+ {[%emt 0:00:12]} 1/2-1/2

[Event "Lietuvos BM10-BM18"]
[Site "Vilnius"]
[Date "2021.06.05"]
[Round "6.9"]
[White "Kuznecovas, Kevinas"]
[Black "Povilaitis, Matas"]
[Result "0-1"]
[WhiteElo "1978"]
[BlackElo "1625"]
[PlyCount "64"]
[EventDate "2021.??.??"]
[TimeControl "90+30"]
[WhiteClock "0:20:21"]
[BlackClock "0:06:43"]

1. e4 {[%emt 0:01:24]} c5 {[%emt 0:00:06]} 2. Nf3 {[%emt 0:01:30]} Nc6 {[%emt
0:00:03]} 3. Nc3 {[%emt 0:00:18]} g6 {[%emt 0:03:05]} 4. d4 {[%emt 0:05:57]}
cxd4 {[%emt 0:00:07]} 5. Nxd4 {[%emt 0:00:00]} Bg7 {[%emt 0:00:17]} 6. Be3 {
[%emt 0:01:46]} d6 {[%emt 0:03:09]} 7. Bc4 {[%emt 0:02:29]} Nf6 {[%emt 0:01:50]
} 8. f3 {[%emt 0:00:24]} a6 {[%emt 0:02:11]} 9. Qd2 {[%emt 0:01:34]} Nxd4 {
[%emt 0:00:30]} 10. Bxd4 {[%emt 0:00:18]} O-O {[%emt 0:02:12]} 11. O-O-O {
[%emt 0:01:09]} b5 {[%emt 0:02:21]} 12. Bd3 {[%emt 0:02:52]} Bb7 {[%emt 0:11:
24]} 13. g4 {[%emt 0:00:46]} Qa5 {[%emt 0:04:56]} 14. Kb1 {[%emt 0:03:20]} b4 {
[%emt 0:06:38]} 15. Ne2 {[%emt 0:00:28]} e5 {[%emt 0:01:26]} 16. Be3 {[%emt 0:
02:41]} d5 {[%emt 0:03:15]} 17. g5 {[%emt 0:09:02]} Ne8 {[%emt 0:09:36]} 18. h4
{[%emt 0:02:30]} Nd6 {[%emt 0:02:20]} 19. Ng3 {[%emt 0:02:05]} d4 {[%emt 0:02:
31]} 20. Bg1 {[%emt 0:00:56]} Nb5 {[%emt 0:02:50]} 21. Bc4 {[%emt 0:00:18]}
Rfc8 {[%emt 0:07:55]} 22. Bb3 {[%emt 0:00:58]} Rab8 {[%emt 0:03:04]} 23. h5 {
[%emt 0:02:04]} Bc6 {[%emt 0:05:36]} 24. hxg6 {[%emt 0:01:19]} hxg6 {[%emt 0:
00:08]} 25. Rf1 {[%emt 0:24:36]} Nc3+ {[%emt 0:10:57]} 26. bxc3 {[%emt 0:02:56]
} bxc3 {[%emt 0:00:10]} 27. Qc1 {[%emt 0:00:31]} Qc5 {[%emt 0:04:43]} 28. f4 {
[%emt 0:01:36]} a5 {[%emt 0:01:29]} 29. fxe5 {[%emt 0:00:54]} a4 {[%emt 0:00:
55]} 30. Rf6 {[%emt 0:09:30]} axb3 {[%emt 0:00:59]} 31. cxb3 {[%emt 0:00:03]}
c2+ {[%emt 0:02:48]} 32. Qxc2 {[%emt 0:00:01]} Bxe4 {[%emt 0:00:09]} 0-1